Cogmind - Beta 11 X7 @@@ ROGUE MODE // 2021.09.11 @ 10:00:21 Player: LU-1G1 Result: Destroyed by G-34 Mercenary with Small Laser Performance ------------- Evolutions (1) 500 Regions Visited (3) 600 Robots Destroyed (66) 330 Value Destroyed (1735) 1735 Prototype IDs (0) 0 Alien Tech Used (0) 0 Bonus (35) 35 TOTAL SCORE: 3200 Bonus ------- High Alert Combat Kills 35 Cogmind --------- Core Integrity 0/400 Matter 266/300 Energy 99/100 System Corruption 1% Temperature Cool (6) Movement Hovering (76) Location -9/Materials Parts ------- > --- POWER (1) -------- Backup Power I > --- PROPULSION (3) --- Backup Propulsion I Backup Propulsion I > --- UTILITY (3) ------ Visual Processing Unit Signal Interpreter Melee Analysis Suite > --- WEAPON (2) ------- Mining Laser Hammer > --- INVENTORY (5) ---- Light Nuclear Core Titanium Leg Large Matter Pod (150) Rocket Launcher Katana Peak State ------------ > --- POWER ------------ Deuterium Engine > --- PROPULSION ------- Titanium Leg Titanium Leg Titanium Leg > --- UTILITY ---------- Heat Sink High-capacity Storage Unit Light Armor Plating > --- WEAPON ----------- Heavy Assault Rifle Light Cannon > --- INVENTORY -------- Deuterium Engine Light Nuclear Core Light Treads Titanium Leg Wheel Small Storage Unit Huge Storage Unit Large Matter Pod High-capacity Matter Pod Visual Processing Unit Signal Interpreter Seismic Analyzer Tractor Beam Mining Laser Hammer Proton Bomb Trap Proton Bomb Trap Proton Bomb Trap Proton Bomb Trap Proton Bomb Trap [Rating: 21] Favorites ----------- Power Light Ion Engine Engine Light Ion Engine Propulsion Light Treads Treads Light Treads Leg Titanium Leg Wheel Compact Wheel Hover Unit Backup Propulsion I Utility High-capacity Storage Unit Device Heat Sink Storage High-capacity Storage Unit Processor Melee Analysis Suite Protection Light Armor Plating Weapon Light Assault Rifle Energy Gun EM Pulse Gun Ballistic Gun Light Assault Rifle Ballistic Cannon Light Cannon Launcher Rocket Launcher Special Weapon Mining Laser Impact Weapon Hammer Slashing Weapon Katana Build | -11 -10 -10 -9 ------- Run | Scr Mat Min Mat Slots Evolved 2 | . . . 2 Power . | . . . . Propulsion 1 | . . . 1 Utility 1 | . . . 1 Weapon . | . . . . Parts Attached 52 | 7 3 6 36 Power 4 | 1 . . 3 Engine 4 | 1 . . 3 Core . | . . . . Reactor . | . . . . Propulsion 14 | 2 . 1 11 Treads 6 | 2 . . 4 Leg 7 | . . . 7 Wheel 1 | . . 1 . Hover . | . . . . Flight . | . . . . Utility 17 | 2 3 2 10 Device 5 | 1 . . 4 Storage 5 | 1 2 1 1 Processor 3 | . . . 3 Hackware . | . . . . Protection 4 | . 1 1 2 Artifact . | . . . . Weapon 17 | 2 . 3 12 Energy Gun 3 | . . 1 2 Energy Cannon . | . . . . Ballistic Gun 9 | 2 . 2 5 Ballistic Cannon 1 | . . . 1 Launcher 1 | . . . 1 Special Weapon 1 | . . . 1 Impact Weapon 1 | . . . 1 Slashing Weapon 1 | . . . 1 Piercing Weapon . | . . . . Special Melee Weapon . | . . . . Unidentified Prototypes . | . . . . Parts Lost 26 | . 1 7 18 Power 3 | . . 1 2 Propulsion 7 | . . 2 5 Utility 6 | . 1 1 4 Weapon 10 | . . 3 7 Highest Loss Streak 7 | . 1 3 7 Average Slot Usage (%) 87 | . 95 82 87 Engine 7 | . 14 1 10 Treads 18 | . 28 17 13 Leg 4 | . . . 12 Wheel 2 | . . 5 . Device 7 | . 9 . 13 Storage 12 | . 14 14 10 Protection 6 | . . 14 4 Energy Gun 4 | . . 6 5 Ballistic Gun 19 | . 28 21 12 Naked Turns 1 | . . . 1 Heaviest Build 91 | 12 47 86 91 Greatest Support 60 | 40 40 40 60 Greatest Overweight (x) 5 | 1 1 5 5 Average Overweight (x) 1 | . . 2 . Largest Inventory Capacity 25 | 8 20 25 25 Average Capacity 18 | 7 16 21 19 Most Carried 23 | 7 13 23 23 Average Carried 15 | 4 10 18 18 Final Capacity 25 | 8 20 25 5 Final Carried 23 | 7 13 23 5 Class Distribution -------------------- 74% | Mutant 25% | Scavenger-Mutant Dominant Class ---------------- Mutant | -10/Materials Mutant | -10/Mines Scavenger-Mutant | -9/Materials Resources | -11 -10 -10 -9 ----------- Run | Scr Mat Min Mat Matter Collected 1298 | 306 220 182 590 Remotely . | . . . . Salvage Created 2267 | 117 480 422 1248 Parts 155 | 8 33 22 92 Haulers Intercepted 1 | . 1 . . Recyclers Shooed 1 | . . . 1 Parts Field Recycled . | . . . . Retrieved Matter . | . . . . Parts Self-Destructed . | . . . . Prevented . | . . . . Kills | -11 -10 -10 -9 ------- Run | Scr Mat Min Mat Combat Hostiles Destroyed 46 | . 9 8 29 Guns 40 | . 9 8 23 Cannons 3 | . . . 3 AOE 3 | . . . 3 Classes Destroyed 11 | 2 4 2 3 Worker 3 | . . 1 2 Builder 3 | . . 1 2 Tunneler 2 | 2 . . . Hauler 1 | . 1 . . Recycler 2 | 1 1 . . Operator 3 | . . . 3 Watcher 6 | . 3 . 3 Swarmer 8 | . 4 . 4 Grunt 31 | . 5 8 18 Duelist 2 | . . . 2 Sentry 5 | . . . 5 Best Kill Streak 5 | 2 3 3 5 Combat Bots Only 3 | . 3 2 3 Max Kills in Single Turn 3 | 1 2 1 3 Gunslinging 1 | . 1 . . Exploded 2 | . . . 2 Melee . | . . . . Uniques/NPCs Destroyed . | . . . . Combat | -11 -10 -10 -9 -------- Run | Scr Mat Min Mat Damage Taken 3131 | . 315 576 2240 Core 529 | . 65 58 406 Absorbed by Shields . | . . . . Core Remaining (%) 75 | 100 . 50 . Volleys Fired 249 | 9 50 42 148 Largest 2 | 2 2 2 2 Hottest 79 | 40 40 60 79 Shots Fired 463 | 18 100 79 266 Gun 452 | 18 100 79 255 Cannon 10 | . . . 10 Launcher 1 | . . . 1 Special . | . . . . Kinetic 353 | 18 100 66 169 Thermal 90 | . . . 90 Explosive 1 | . . . 1 Electromagnetic 19 | . . 13 6 Robot Hit Streak 12 | 3 6 12 11 Robot Miss Streak 5 | 4 5 3 5 Penetration Max . | . . . . Secondary Targets 4 | . 1 1 2 Max Gunslinging Chain 1 | . 1 1 1 Shots Hit Robots 291 | 9 53 57 172 Core Hits 126 | 6 24 25 71 Critical Kills . | . . . . Critical Parts Destroyed . | . . . . Critical Strikes 1 | . . 1 . Corrupt 1 | . . 1 . Melee Attacks 2 | . . . 2 Impact 2 | . . . 2 Slashing . | . . . . Piercing . | . . . . Sneak Attacks . | . . . . Combat Hostiles . | . . . . Follow-up Attacks . | . . . . Damage Inflicted 3560 | 98 569 622 2271 Guns 3157 | 98 560 622 1877 Cannons 155 | . . . 155 Explosions 218 | . . . 218 Melee . | . . . . Ramming 30 | . 9 . 21 Kinetic 2454 | 98 560 479 1317 Thermal 686 | . . . 686 Explosive 187 | . . . 187 Electromagnetic 203 | . . 143 60 Impact . | . . . . Slashing . | . . . . Piercing . | . . . . Highest Corruption 1 | . . . 1 Average Corruption 1 | . . . 1 Corruption Purged . | . . . . Effects 3 | . . . 3 Message Errors 2 | . . . 2 Weapon Failures 1 | . . . 1 Overload Shots . | . . . . Overflow Damage 31 | . . . 31 Projectiles 9 | . . . 9 Explosions 22 | . . . 22 Melee . | . . . . Knockbacks . | . . . . Impact . | . . . . Kinetic . | . . . . Secondary . | . . . . Self-Inflicted Damage 68 | . . . 68 Shots 2 | . . . 2 Rammed 6 | . 1 . 5 Targets Rammed 6 | . 1 . 5 Kicked . | . . . . Crushed . | . . . . Highest Temperature 40 | . 12 40 37 Average Temperature 10 | . 6 11 12 Received Heat Transfer 1164 | . 120 339 705 Siege Activations . | . . . . Robots Corrupted . | . . . . Combat Hostiles . | . . . . Parts Fried . | . . . . Impact Corruptions . | . . . . Robots Melted . | . . . . Combat Hostiles . | . . . . Parts Melted 1 | . . . 1 Heat Transferred 1560 | . . . 1560 Parts Sabotaged . | . . . . Parts Stolen . | . . . . Parts Stripped . | . . . . Power Chain Reactions 1 | . . . 1 Missiles Intercepted . | . . . . Alert | -11 -10 -10 -9 ------- Run | Scr Mat Min Mat Peak Influence 444 | 15 244 125 444 Initial 40 | . 9 40 . Average 114 | 7 99 27 220 Maximum Alert Level 2 | . 1 . 2 Low Security (%) 83 | 100 95 100 56 Level 1 10 | . 4 . 26 Level 2 6 | . . . 16 Level 3 . | . . . . Level 4 . | . . . . Level 5 . | . . . . High Security . | . . . . Max Security . | . . . . Squads Dispatched 10 | . 2 . 8 Investigation 6 | . 2 . 4 Extermination . | . . . . Reinforcement 4 | . . . 4 Assault . | . . . . Garrison . | . . . . Intercept . | . . . . Construction Impeded . | . . . . Haulers Reinforced . | . . . . Active Scanning Responses . | . . . . Cargo Convoy Interrupts . | . . . . Stealth | -11 -10 -10 -9 --------- Run | Scr Mat Min Mat Distress Signals 6 | . 2 . 4 Communications Jammed . | . . . . Distress Signals . | . . . . Times Spotted 83 | . 20 8 55 Peak Tracking Total 6 | . 4 2 6 Tactical Retreats 6 | . 2 . 4 Traps | -11 -10 -10 -9 ------- Run | Scr Mat Min Mat Traps Triggered 4 | . . . 4 Indirectly . | . . . . Trap Hack Attempts . | . . . . Triggered . | . . . . Disarmed . | . . . . Reprogrammed . | . . . . Reused . | . . . . Traps Extracted . | . . . . Installed 3 | . . . 3 Triggered . | . . . . Machines | -11 -10 -10 -9 ---------- Run | Scr Mat Min Mat Machines Disabled 4 | . 1 . 3 Max in Single Turn 1 | . 1 . 1 Machines Sabotaged . | . . . . Garrisons Compromised . | . . . . Overloaded Fab Kills . | . . . . Fab Network Shutdowns . | . . . . Hacking | -11 -10 -10 -9 --------- Run | Scr Mat Min Mat Machines Accessed 14 | . 8 . 6 Terminals 9 | . 6 . 3 Fabricators . | . . . . Repair Stations 2 | . . . 2 Recycling Units 3 | . 2 . 1 Scanalyzers . | . . . . Garrison Access . | . . . . Total Hacks 32 | . 15 . 17 Successful 12 | . 6 . 6 Failed 20 | . 9 . 11 Catastrophic 5 | . 2 . 3 Database Lockouts . | . . . . Manual 24 | . 15 . 9 Terminals 25 | . 13 . 12 Fabricators . | . . . . Repair Stations 4 | . . . 4 Recycling Units 3 | . 2 . 1 Scanalyzers . | . . . . Garrison Access . | . . . . Terminal Hacks 4 | . 3 . 1 Part Schematic 1 | . 1 . . Robot Schematic 1 | . 1 . . Hauler Manifests 1 | . 1 . . Zone Layout 1 | . . . 1 Fabricator Hacks . | . . . . Repair Station Hacks 2 | . . . 2 Scan Component 1 | . . . 1 Refit 1 | . . . 1 Recycling Unit Hacks . | . . . . Scanalyzer . | . . . . Garrison Access Hacks . | . . . . Unauthorized Hacks 6 | . 3 . 3 Terminals 3 | . 1 . 2 Botnet 1 | . . . 1 Operators 2 | . 1 . 1 Fabricators . | . . . . Repair Stations . | . . . . Recycling Units 3 | . 2 . 1 Tunnel 3 | . 2 . 1 Scanalyzers . | . . . . Garrison Access . | . . . . Data Cores Recovered . | . . . . Used . | . . . . Hacking Detections 11 | . 6 . 5 Full Trace Events 4 | . 2 . 2 Feedback Events . | . . . . Feedback Blocked . | . . . . Robot Schematics Acquired 1 | . 1 . . Robots Built . | . . . . Matter . | . . . . Time . | . . . . Total Robot Build Rating . | . . . . Part Schematics Acquired 1 | . 1 . . Parts Built . | . . . . Matter . | . . . . Time . | . . . . Total Part Build Rating . | . . . . Parts Repaired . | . . . . Time . | . . . . Parts Recycled . | . . . . Recycled Matter . | . . . . Retrieved Matter . | . . . . Retrieved Components . | . . . . Parts Scanalyzed . | . . . . Part Schematics Acquired . | . . . . Parts Damaged . | . . . . Bothacking | -11 -10 -10 -9 ------------ Run | Scr Mat Min Mat Used RIF Installer . | . . . . Robots Hacked . | . . . . Non-combat . | . . . . Combat . | . . . . Robot Hacks Applied . | . . . . Relay Couplers Released . | . . . . Robots Rewired . | . . . . Allies Hacked . | . . . . Hacks Repelled . | . . . . Allies | -11 -10 -10 -9 -------- Run | Scr Mat Min Mat Total Allies . | . . . . Largest Group . | . . . . Highest-Rated Group . | . . . . Highest-Rated Ally . | . . . . Total Orders . | . . . . Ally Attacks . | . . . . Total Damage . | . . . . Kills . | . . . . Allies Corrupted . | . . . . Allies Melted . | . . . . Intel | -11 -10 -10 -9 ------- Run | Scr Mat Min Mat Robot Analysis Total . | . . . . Derelict Logs Recovered 2 | . . 2 . Drone Launches . | . . . . Drone Recoveries . | . . . . Exploration | -11 -10 -10 -9 ------------- Run | Scr Mat Min Mat Turns Passed 4513 | 173 1115 1584 1641 Spaces Moved 1889 | 83 457 700 649 Core 167 | 3 . . 164 Treads 1114 | 80 457 308 269 Legs 172 | . . . 172 Wheels 405 | . . 392 13 Hover 31 | . . . 31 Flight . | . . . . Fastest Speed 50 | 50 160 130 50 Average Speed 192 | 157 207 206 171 Slowest Speed 360 | 160 260 360 360 Overloaded Moves . | . . . . Propulsion Burnouts . | . . . . Robots Hopped . | . . . . Cave-ins Triggered . | . . . . Exploration Rate (%) 58 | 4 82 99 48 Regions Visited 3 Branch Regions 1 Pre-discovered Areas 4 | . 2 1 1 Known Exits Taken . | . . . . Unknown Exits Taken 3 | 1 1 1 . Scrap Searched 2 | . . 2 . Spaces Dug 2 | . . . 2 Terrain Destroyed 18 | . . . 18 Melee 2 | . . . 2 Projectile . | . . . . AOE 16 | . . . 16 Terrain Rammed . | . . . . Walls Destroyed . | . . . . Machines Disabled . | . . . . Actions | -11 -10 -10 -9 --------- Run | Scr Mat Min Mat Total 2329 | 106 531 767 925 Wait 65 | . 13 5 47 Move 1886 | 82 456 699 649 Hop . | . . . . Pick Up 40 | 8 6 15 11 Fast Attach 26 | 6 1 . 19 Attach 15 | 1 . 5 9 Detach . | . . . . Swap 11 | . 2 1 8 Drop 26 | . 2 . 24 Fire 249 | 9 50 42 148 Melee 2 | . . . 2 Ram . | . . . . Kick . | . . . . Crush 6 | . 1 . 5 Escape Stasis . | . . . . Rewire . | . . . . Trap 3 | . . . 3 Miscellaneous . | . . . . Route ------- -11/Scrapyard -10/Materials (discovered 4 exits: *Mat x2 / [*Min x2]) -10/Mines (discovered 2 exits: *Mat x2) -9/Materials History --------- Turn | Location | Event 2 | -11/Scrapyard | Met Revision 17 24 | -11/Scrapyard | Discovered new exit (range 14) 174 | -11/Scrapyard | Entered Materials 308 | -10/Materials | Build established: Mutant 395 | -10/Materials | Discovered new exit (range 16) 586 | -10/Materials | Discovered new exit (range 16) 1026 | -10/Materials | Discovered new exit (range 16) 1211 | -10/Materials | Discovered new exit (range 15) 1289 | -10/Materials | Entered Mines 1841 | -10/Mines | Discovered new exit (range 9) 2055 | -10/Mines | Learned Materials garrison access intel 2208 | -10/Mines | Lost 3 parts (1n1u1w) 2249 | -10/Mines | Discovered new exit (range 6) 2320 | -10/Mines | Found a hidden stash of uninstalled traps 2873 | -10/Mines | Entered Materials 2873 | -9/Materials | Evolved 2 slots: Propulsion x1, Utility x1 2959 | -9/Materials | Lost 3 parts (1n1u1w) 3771 | -9/Materials | Build established: Scavenger-Mutant 3970 | -9/Materials | Lost 4 parts (1p2n1u) 4185 | -9/Materials | Core integrity fell below 50% 4393 | -9/Materials | Released all parts (2) 4394 | -9/Materials | Core integrity fell below 20% 4424 | -9/Materials | Lost 7 parts (1p2n1u3w) 4514 | -9/Materials | Destroyed by G-34 Mercenary with Small Laser Last Messages --------------- 04418_ K-01 Serf destroyed. 04419_ U-05 Engineer builds a Wall. 04419_ Acquired 26 matter. 04420_ K-01 Serf collects debris. 04444_ Dropped Katana. 04444_ Acquired Katana. 04447_ Dropped Katana. 04452_ Connecting with Terminal... 04452_ ALERT: Suspicious activity at Terminal M006. Dispatching Investigation squad. 04466_ Acquired Rocket Launcher. 04467_ Connecting with Terminal... 04467_ ALERT: Suspicious activity at Terminal M010. Dispatching Investigation squad. 04488_ Connecting with Repair Station... >>Refit Scanning configuration... Attaching: Backup Power I x1 Backup Propulsion I x2 Map ----- +----------------------------------------------------+ | ???????????# #??# # | | ???????????# " """"" #??# ############## # | | ???????????# """"""""" #??# ## #??# # | | ???????????# """ """ #??# ## """ #??# # | | ???????????# #### ## R" #??# # | | ???????????# # """ #??# # | | ???????????# + #??# # | | ???????????# #####+## # """ #??# # | | ???????????# #??????## ####### # """ #??# # | | ???????????# #???????# #?????# # """ #??# # | | ########### +???????# #?????# # #??# + | | #???????# #######+######+###??# # | | #???????# # #?# #??### # | | #???????# # " ### #### | | ############ #???????# # ] """ + | | ?######## ## | ###?????? # """ # " | | ?# #!%!# #?????? # g""" + "T | | ?# = #!==*##?????? # "" # | | ?# #= = #?????? # """ # | | ?# #&=% #?????? # "" # ## | | ?# """ """ #!=/!!#?????? # "" # #####+## | | ?# """ """ #&!!###?????? # !! "g # ## | | ## """ """ #= !#???????# # !! # ## """"" | | # # #???????# # + + """"" | | ######+##### #???????# # # ## """"" | | #???????# @ # ## """"" | | #???????# # ######## """"" | | """"" #???????# ############??????# """"" | | ""T"" ########???????#???????????????????# """"" | | % #??????????????????????????????????# ? | | #??????????????????????????????????######? | | +????????????????????????????????????????? | | #????????????????????????????????????????? | | #???????#????????????????????????????????? | | ####### #????????????????????????????????? | | %% #????????????????????????????????? | | #????????????????????????????????? | | +????????????????????????????????? | | %% #????????????????????????????????? | | #????????????????????????????????? | | """ #????????????????????????????????? | | """ #????????????????????????????????? | | """ """ #????????????????????????????????? | | """ #????????????????????????????????? | | """ * #????????????????????????????????? | | #????????????????????????????????? | | #########????????????????????????????????? | | ###### ##????????????????????????????????????????? | | ?????# #?????????????????????????????????????????? | | ??####+###???????????????????????????????????????? | +----------------------------------------------------+ Best States ------------- Heat Dissipation 48 Energy Generation 14 Energy Capacity 275 Matter Stores 300 Matter Capacity 300 Sight Range 18 Terrain Scan Range 16 Terrain Scan Density 10 Armor Coverage 150 Weapon Shielding 33 Evasion (%) 50 Melee Accuracy 5 Recoil Reduction 3 Item Schematics ----------------- Med. Storage Unit | -10/Materials | Hacked Robot Schematics ------------------ O-16 Technician | -10/Materials | Hacked Fabricated ------------ Nothing Alien Tech Used ----------------- None Achievements -------------- None Challenges ------------ None Game ------ Seed OpticalDisposableRailgun Manual? 0 Play Time 00:32:15 Cumulative 426.5 hours Start 2021.09.10 @ 22:53:52 End 2021.09.11 @ 10:00:21 Sessions 2 Manual Loads 0 Difficulty Rogue Special Mode None Game No. 417 Rogue 202 Adventurer 112 Explorer 103 Win Type - Total 30 Types 21/0/6/2/0/0/0/1/0 Lore% 87 Gallery% 92 Achievement% 76 Wizard Run 0 Options --------- ASCII 1 Keyboard 0 Movement Numpad Keybinds 0 Fullscreen 2 Font 18/TerminusBold Map View 76x50 Tactical HUD 1 Map Filters NONE Filters NONE Steam 1 RUN: a73c80f6-46b1-4e90-9ce4-f7cefd2ea7e2